[Event "African Individual Chess-ch Women 2024"]
[Site "Accra"]
[Date "2024.03.17"]
[Round "6.7"]
[White "Paulo, Jemima"]
[Black "Yavo Tchetche, Marie"]
[Result "1-0"]
[ECO "E60"]
[WhiteElo "1946"]
[BlackElo "1659"]
[Annotator "RC"]
[PlyCount "97"]
[EventDate "2024.03.13"]
[EventCountry "GHA"]
[SourceTitle "playchess.com"]
[Source "ChessBase"]
[SourceQuality "1"]
[TimeControl "5400+30"]

1. c4 {[%emt 0:00:12]} Nf6 {[%emt 0:00:31]} 2. Nf3 {[%emt 0:00:21]} g6 {[%emt 0:00:26]} 3. b3 {[%emt 0:03:20]} Bg7 {[%emt 0:00:55]} 4. Bb2 {[%emt 0:00:05]} O-O {[%emt 0:00:40]} 5. g3 {[%emt 0:00:06]} d6 {[%emt 0:00:49]} 6. Bg2 {[%emt 0:00:07]} Nc6 {[%emt 0:01:32]} 7. O-O {[%emt 0:00:16]} e5 {[%emt 0:00:30]} 8. d4 {[%emt 0:00:50]} Nd7 {[%emt 0:01:46]} 9. e3 {[%emt 0:02:30]} Rb8 {[%emt 0:02:21]} 10. Nc3 {[%emt 0:00:10]} exd4 {[%emt 0:03:05]} 11. exd4 {[%emt 0:00:21]} Nf6 {[%emt 0:00:48]} 12. Qd2 {[%emt 0:00:53]} Bf5 {[%emt 0:00:53]} 13. d5 {[%emt 0:00:55]} Ne5 {[%emt 0:01:30]} 14. Nxe5 {[%emt 0:05:46]} dxe5 {[%emt 0:01:18]} 15. Rfe1 {[%emt 0:01:10]} Nd7 {[%emt 0:00:44]} 16. Ba3 {[%emt 0:05:22]} Re8 {[%emt 0:00:36]} 17. Rad1 {[%emt 0:00:06]} Qf6 {[%emt 0:01:37]} 18. d6 {[%emt 0:01:15]} c6 {[%emt 0:00:13]} 19. Ne4 {[%emt 0:05:29]} Qd8 {[%emt 0:02:32]} 20. Nc5 {[%emt 0:08:05]} b6 {[%emt 0:00:59]} 21. Na6 {[%emt 0:00:21]} Rc8 {[%emt 0:01:36]} 22. Nc7 {[%emt 0:00:09]} Rxc7 {[%emt 0:00:48]} 23. dxc7 {[%emt 0:00:08]} Qxc7 {[%emt 0:00:07]} 24. Qd6 {[%emt 0:01:04]} Qxd6 {[%emt 0:00:37]} 25. Bxd6 {[%emt 0:00:07]} c5 {[%emt 0:01:30]} 26. Bc6 {[%emt 0:00:23]} Rd8 {[%emt 0:03:08]} 27. Bxd7 {[%emt 0:01:22]} Rxd7 {[%emt 0:01:06]} 28. Bb8 {[%emt 0:00:07]} e4 {[%emt 0:05:03]} 29. Rxd7 {[%emt 0:00:13]} Bxd7 {[%emt 0:00:07]} 30. Re2 {[%emt 1:04:17]} e3 31. Rxe3 {[%emt 0:00:00]} Bd4 {[%emt 0:01:04]} 32. Re7 {[%emt 0:00:00]} Bf5 {[%emt 0:00:32]} 33. Bxa7 {[%emt 0:00:00]} Bb1 {[%emt 0:00:34]} 34. Bxb6 {[%emt 0:00:00]} Bxa2 {[%emt 0:00:32]} 35. b4 {[%emt 0:00:00]} Kf8 {[%emt 0:00:45]} 36. Rc7 {[%emt 0:00:00]} Bxc4 {[%emt 0:00:31]} 37. Bxc5+ {[%emt 0:00:00]} Bxc5 {[%emt 0:00:28]} 38. Rxc5 {[%emt 0:00:00]} Ba6 {[%emt 0:05:17]} 39. b5 {[%emt 0:00:00]} Bb7 {[%emt 0:00:36]} 40. Rc7 {[%emt 0:00:00]} Bd5 {[%emt 0:00:21]} 41. b6 {[%emt 0:00:00]} Kg7 {[%emt 0:00:42]} 42. b7 {[%emt 0:00:00]} Bxb7 {[%emt 0:00:14]} 43. Rxb7 {[%emt 0:00:00]} h6 {[%emt 0:01:20]} 44. h4 {[%emt 0:00:00]} Kf6 {[%emt 0:00:23]} 45. f4 {[%emt 0:00:00]} h5 {[%emt 0:00:38]} 46. Kf2 {[%emt 0:00:00]} Ke6 {[%emt 0:00:14]} 47. Ke3 {[%emt 0:00:00]} f6 {[%emt 0:06:44]} 48. Ke4 {[%emt 0:00:00]} Kd6 {[%emt 0:01:11]} 49. Rg7 {[%emt 0:00:00]} 1-0

[Event "African Individual Chess-ch Women 2024"]
[Site "Accra"]
[Date "2024.03.18"]
[Round "7.1"]
[White "QUICKPEN, Deborah Ebimobo-ere"]
[Black "February, Jesse Nikki"]
[Result "1-0"]
[ECO "A29"]
[WhiteElo "1945"]
[BlackElo "1920"]
[Annotator "RC"]
[PlyCount "103"]
[EventDate "2024.03.13"]
[EventCountry "GHA"]
[SourceTitle "playchess.com"]
[Source "ChessBase"]
[SourceQuality "1"]
[TimeControl "5400+30"]

1. c4 {[%emt 1:31:00]} e5 {[%emt 1:31:00]} 2. g3 {[%emt 0:00:30]} Nf6 {[%emt 0:00:30]} 3. Bg2 {[%emt 0:00:30]} d5 {[%emt 0:00:30]} 4. cxd5 {[%emt 0:00:30]} Nxd5 {[%emt 0:00:30]} 5. Nc3 {[%emt 0:00:30]} Nb6 {[%emt 0:00:30]} 6. d3 {[%emt 0:00:30]} Be7 {[%emt 0:00:30]} 7. Nf3 {[%emt 0:00:30]} Nc6 {[%emt 0:00:30]} 8. Be3 {[%emt 0:00:30]} Be6 {[%emt 0:00:30]} 9. O-O {[%emt 0:00:30]} f6 {[%emt 0:00:30]} 10. Rc1 {[%emt 0:00:30]} O-O {[%emt 0:00:30]} 11. Qc2 {[%emt 0:00:30]} Nd4 {[%emt 0:00:30]} 12. Bxd4 {[%emt 0:00:30]} exd4 {[%emt 0:00:30]} 13. Ne4 {[%emt 0:00:30]} c6 {[%emt 0:00:30]} 14. Nc5 {[%emt 0:00:30]} Bxc5 {[%emt 0:00:30]} 15. Qxc5 {[%emt 0:00:30]} Bxa2 {[%emt 0:00:30]} 16. Nxd4 {[%emt 0:00:30]} Bd5 {[%emt 0:00:30]} 17. e4 {[%emt 0:00:30]} Bf7 {[%emt 0:00:30]} 18. Rfd1 {[%emt 0:00:30]} Nd7 {[%emt 0:00:30]} 19. Qc3 {[%emt 0:00:30]} Qb6 {[%emt 0:00:30]} 20. Nf5 {[%emt 0:00:30]} Rfd8 {[%emt 0:00:30]} 21. d4 {[%emt 0:00:30]} Qb3 {[%emt 0:00:30]} 22. Nd6 {[%emt 0:00:30]} Rab8 {[%emt 0:00:30]} 23. f4 {[%emt 0:00:30]} Nb6 {[%emt 0:00:30]} 24. Nxf7 {[%emt 0:00:30]} Qxf7 {[%emt 0:00:30]} 25. Rd3 {[%emt 0:00:30]} f5 {[%emt 0:00:30]} 26. e5 {[%emt 0:00:30]} Nd5 {[%emt 0:00:30]} 27. Qc5 {[%emt 0:00:30]} a6 {[%emt 0:00:30]} 28. Re1 {[%emt 0:00:30]} Qe6 {[%emt 0:00:30]} 29. Rc1 {[%emt 0:00:30]} g6 {[%emt 0:00:30]} 30. Qa5 {[%emt 0:00:30]} Qe7 {[%emt 0:00:30]} 31. Qa2 {[%emt 0:00:30]} Kg7 {[%emt 0:00:30]} 32. Qb3 {[%emt 0:00:30]} Nb4 {[%emt 0:00:30]} 33. Rd2 {[%emt 0:00:30]} Nd5 {[%emt 0:00:30]} 34. Rc5 {[%emt 0:00:30]} Nc7 {[%emt 0:00:30]} 35. Qe3 {[%emt 0:00:30]} Ne6 {[%emt 0:00:30]} 36. Rcc2 {[%emt 0:00:30]} Nc7 {[%emt 0:00:30]} 37. Rc5 {[%emt 0:00:30]} Ne6 {[%emt 0:00:30]} 38. Rc4 {[%emt 0:00:30]} Nc7 {[%emt 0:00:30]} 39. Kf2 {[%emt 0:00:30]} Nd5 {[%emt 0:00:30]} 40. Qb3 {[%emt 0:00:30]} Qe6 {[%emt 0:00:30]} 41. Rd3 {[%emt 0:00:30]} h5 {[%emt 0:00:30]} 42. Rc5 {[%emt 0:00:30]} Kh6 {[%emt 0:00:30]} 43. Bxd5 {[%emt 0:00:30]} cxd5 {[%emt 0:00:30]} 44. Rc7 {[%emt 0:00:30]} b5 {[%emt 0:00:30]} 45. Rdc3 {[%emt 0:00:30]} Qb6 {[%emt 0:00:30]} 46. Qb4 {[%emt 0:00:30]} Qe6 {[%emt 0:00:30]} 47. R3c6 {[%emt 0:00:30]} Qe8 {[%emt 0:00:30]} 48. Qc5 {[%emt 0:00:30]} a5 {[%emt 0:00:30]} 49. Qa7 {[%emt 0:00:30]} Qg8 {[%emt 0:00:30]} 50. Qxa5 {[%emt 0:00:30]} b4 {[%emt 0:00:30]} 51. Qc5 {[%emt 0:00:30]} b3 {[%emt 0:00:30]} 52. Qe7 {[%emt 0:00:30]} 1-0

[Event "African Individual Chess-ch Women 2024"]
[Site "Accra"]
[Date "2024.03.18"]
[Round "7.2"]
[White "Wafa, Shahenda"]
[Black "Nakabo, Peninah"]
[Result "0-1"]
[ECO "B12"]
[WhiteElo "2083"]
[BlackElo "1836"]
[Annotator "RC"]
[PlyCount "144"]
[EventDate "2024.03.13"]
[EventCountry "GHA"]
[SourceTitle "playchess.com"]
[Source "ChessBase"]
[SourceQuality "1"]
[TimeControl "5400+30"]

1. e4 {[%emt 0:00:03]} c6 {[%emt 0:00:12]} 2. d4 {[%emt 0:00:09]} d5 {[%emt 0:00:05]} 3. e5 {[%emt 0:00:06]} c5 {[%emt 0:00:06]} 4. Nf3 {[%emt 0:00:09]} e6 {[%emt 0:00:15]} 5. c3 {[%emt 0:01:41]} Nd7 {[%emt 0:01:22]} 6. Be3 {[%emt 0:05:41]} Qb6 {[%emt 0:02:02]} 7. Qd2 {[%emt 0:01:36]} cxd4 {[%emt 0:00:33]} 8. Bxd4 {[%emt 0:01:33]} Qc7 {[%emt 0:01:36]} 9. Bd3 {[%emt 0:03:06]} Ne7 {[%emt 0:00:33]} 10. O-O {[%emt 0:14:10]} g6 {[%emt 0:01:41]} 11. Na3 {[%emt 0:01:19]} a6 {[%emt 0:00:36]} 12. Qf4 {[%emt 0:03:13]} Bg7 {[%emt 0:00:24]} 13. c4 {[%emt 0:07:10]} O-O {[%emt 0:03:57]} 14. Rac1 {[%emt 0:00:00]} Qb8 {[%emt 0:04:04]} 15. Rfe1 {[%emt 0:01:49]} b6 {[%emt 0:06:17]} 16. cxd5 {[%emt 0:09:41]} Nxd5 {[%emt 0:00:25]} 17. Qh4 {[%emt 0:03:43]} b5 {[%emt 0:01:24]} 18. Nc2 {[%emt 0:04:39]} Bb7 {[%emt 0:01:01]} 19. Qg3 {[%emt 0:01:31]} Qd8 {[%emt 0:03:10]} 20. Ng5 {[%emt 0:01:22]} Bh6 {[%emt 0:09:34]} 21. h4 {[%emt 0:00:20]} Qe7 {[%emt 0:02:51]} 22. Be4 {[%emt 0:04:19]} Rac8 {[%emt 0:01:20]} 23. Bxd5 {[%emt 0:03:18]} Bxd5 {[%emt 0:00:33]} 24. Ne3 {[%emt 0:00:23]} Bb7 {[%emt 0:02:21]} 25. Ng4 {[%emt 0:02:18]} Bg7 {[%emt 0:04:38]} 26. Qf4 {[%emt 0:01:52]} Kh8 {[%emt 0:14:26]} 27. Rxc8 {[%emt 0:02:51]} Bxc8 {[%emt 0:00:23]} 28. Nf6 {[%emt 0:01:14]} h6 {[%emt 0:04:16]} 29. Ngh7 {[%emt 0:02:16]} Rd8 {[%emt 0:00:35]} 30. h5 {[%emt 0:01:29]} Nf8 {[%emt 0:01:21]} 31. Nxf8 {[%emt 0:00:25]} Qxf8 {[%emt 0:01:40]} 32. Qe4 {[%emt 0:01:09]} Bxf6 {[%emt 0:01:00]} 33. exf6 {[%emt 0:00:09]} g5 {[%emt 0:03:09]} 34. Rc1 {[%emt 0:06:08]} Qd6 {[%emt 0:02:27]} 35. Bc3 {[%emt 0:03:08]} Qd5 {[%emt 0:02:22]} 36. Qxd5 {[%emt 0:04:20]} exd5 {[%emt 0:01:45]} 37. Ba5 {[%emt 0:00:33]} Re8 {[%emt 0:00:44]} 38. Rc6 {[%emt 0:00:41]} Bg4 {[%emt 0:11:05]} 39. Rxa6 {[%emt 0:00:35]} Bxh5 {[%emt 0:00:21]} 40. Rd6 {[%emt 0:01:37]} Re5 {[%emt 0:04:41]} 41. Bc3 {[%emt 0:00:34]} Rf5 {[%emt 0:00:41]} 42. Kf1 {[%emt 0:02:53]} Bg6 {[%emt 0:08:02]} 43. Ke2 {[%emt 0:00:00]} h5 {[%emt 0:00:00]} 44. b3 {[%emt 0:00:00]} h4 {[%emt 0:00:00]} 45. a4 {[%emt 0:00:00]} bxa4 {[%emt 0:00:00]} 46. bxa4 {[%emt 0:00:00]} g4 {[%emt 0:00:00]} 47. Rb6 {[%emt 0:00:00]} h3 {[%emt 0:00:00]} 48. Rb1 {[%emt 0:00:00]} Rf4 {[%emt 0:00:00]} 49. Rh1 {[%emt 0:00:00]} Be4 {[%emt 0:00:00]} 50. Be5 {[%emt 0:00:00]} Rf5 {[%emt 0:00:00]} 51. Bg3 {[%emt 0:00:00]} Kg8 {[%emt 0:00:00]} 52. Ra1 {[%emt 0:00:00]} hxg2 {[%emt 0:00:00]} 53. Bh2 {[%emt 0:04:54]} Rxf6 {[%emt 0:00:00]} 54. a5 {[%emt 0:00:15]} Ra6 {[%emt 0:00:00]} 55. Ke3 {[%emt 0:00:32]} Kf8 {[%emt 0:00:00]} 56. Kd4 {[%emt 0:01:07]} Ke7 {[%emt 0:00:00]} 57. Bg1 {[%emt 0:03:39]} Kd7 {[%emt 0:00:00]} 58. Kc5 {[%emt 0:00:27]} f5 {[%emt 0:00:00]} 59. Kb5 {[%emt 0:00:19]} Ra8 {[%emt 0:00:00]} 60. Kc5 {[%emt 0:00:41]} Ke6 {[%emt 0:00:00]} 61. a6 {[%emt 0:00:32]} Ke5 {[%emt 0:00:57]} 62. a7 {[%emt 0:00:53]} d4 {[%emt 0:01:04]} 63. f4+ {[%emt 0:00:42]} Kxf4 {[%emt 0:01:47]} 64. Bxd4 {[%emt 0:00:39]} Kg3 {[%emt 0:02:40]} 65. Be5+ {[%emt 0:00:22]} Kh3 {[%emt 0:02:06]} 66. Ra3+ {[%emt 0:01:25]} Bf3 {[%emt 0:00:15]} 67. Ra1 {[%emt 0:00:07]} Rxa7 {[%emt 0:01:17]} 68. Rb1 {[%emt 0:00:38]} Ra5+ {[%emt 0:01:09]} 69. Kd6 {[%emt 0:00:06]} Rxe5 {[%emt 0:00:14]} 70. Kxe5 {[%emt 0:00:12]} Kh2 {[%emt 0:00:06]} 71. Rb2 {[%emt 0:01:40]} Kh1 {[%emt 0:00:09]} 72. Kxf5 {[%emt 0:00:45]} g1=Q {[%emt 0:00:23]} 0-1

[Event "African Individual Chess-ch Women 2024"]
[Site "Accra"]
[Date "2024.03.18"]
[Round "7.3"]
[White "Junior, Ednasia"]
[Black "Nassr, Lina"]
[Result "0-1"]
[ECO "B47"]
[WhiteElo "1915"]
[BlackElo "2080"]
[Annotator "RC"]
[PlyCount "50"]
[EventDate "2024.03.13"]
[EventCountry "GHA"]
[SourceTitle "playchess.com"]
[Source "ChessBase"]
[SourceQuality "1"]
[TimeControl "5400+30"]

1. e4 {[%emt 0:00:02]} c5 {[%emt 0:00:08]} 2. Nf3 {[%emt 0:00:05]} e6 {[%emt 0:00:06]} 3. d4 {[%emt 0:00:05]} cxd4 {[%emt 0:00:06]} 4. Nxd4 {[%emt 0:00:07]} Nc6 {[%emt 0:00:15]} 5. Nc3 {[%emt 0:01:09]} Qc7 {[%emt 0:00:21]} 6. a3 {[%emt 0:00:45]} a6 {[%emt 0:00:53]} 7. Be2 {[%emt 0:01:41]} Nf6 {[%emt 0:01:43]} 8. O-O {[%emt 0:01:25]} Nxd4 {[%emt 0:03:03]} 9. Qxd4 {[%emt 0:00:35]} Bc5 {[%emt 0:01:24]} 10. Qd3 {[%emt 0:00:40]} b5 {[%emt 0:09:07]} 11. Bg5 {[%emt 0:05:29]} Be7 {[%emt 0:07:44]} 12. f4 {[%emt 0:05:31]} d6 {[%emt 0:04:48]} 13. Bf3 {[%emt 0:06:30]} Bb7 {[%emt 0:10:03]} 14. e5 {[%emt 0:07:42]} dxe5 {[%emt 0:18:51]} 15. fxe5 {[%emt 0:09:28]} Rd8 {[%emt 0:09:43]} 16. Qe2 {[%emt 0:01:05]} Nd5 {[%emt 0:01:49]} 17. Nxd5 {[%emt 0:12:55]} Bxd5 {[%emt 0:01:24]} 18. Bxe7 {[%emt 0:01:36]} Qxe7 {[%emt 0:00:20]} 19. Rfd1 {[%emt 0:12:06]} Bxf3 {[%emt 0:13:19]} 20. Qxf3 {[%emt 0:05:14]} Qc5+ {[%emt 0:03:26]} 21. Kh1 {[%emt 0:00:57]} O-O {[%emt 0:00:33]} 22. Rxd8 {[%emt 0:06:25]} Rxd8 {[%emt 0:00:18]} 23. Rd1 {[%emt 0:00:05]} Rd7 {[%emt 0:12:36]} 24. Rd2 Rxd2 {[%emt 0:00:00]} 25. Qd1 Rxd1# {[%emt 0:00:00]} 0-1

[Event "African Individual Chess-ch Women 2024"]
[Site "Accra"]
[Date "2024.03.18"]
[Round "7.4"]
[White "Ofowino, Toritsemuwa"]
[Black "Vilhete, Vania Fausto Da T."]
[Result "1-0"]
[ECO "B30"]
[WhiteElo "1950"]
[BlackElo "1829"]
[Annotator "RC"]
[PlyCount "103"]
[EventDate "2024.03.13"]
[EventCountry "GHA"]
[SourceTitle "playchess.com"]
[Source "ChessBase"]
[SourceQuality "1"]
[TimeControl "5400+30"]

1. e4 {[%emt 0:00:09]} c5 {[%emt 0:00:03]} 2. Nf3 {[%emt 0:00:14]} e6 {[%emt 0:00:16]} 3. d3 {[%emt 0:01:14]} Nc6 {[%emt 0:00:58]} 4. g3 {[%emt 0:01:26]} d6 {[%emt 0:03:10]} 5. Bg2 {[%emt 0:00:19]} Nf6 {[%emt 0:00:54]} 6. O-O {[%emt 0:03:17]} g6 {[%emt 0:04:48]} 7. c3 {[%emt 0:04:25]} Bg7 {[%emt 0:00:22]} 8. h3 {[%emt 0:01:11]} Qc7 {[%emt 0:01:53]} 9. Be3 {[%emt 0:03:13]} O-O {[%emt 0:00:13]} 10. Nbd2 {[%emt 0:02:04]} b6 {[%emt 0:01:22]} 11. Rc1 {[%emt 0:02:12]} Bb7 {[%emt 0:00:32]} 12. Re1 {[%emt 0:04:35]} Rac8 {[%emt 0:01:59]} 13. g4 {[%emt 0:01:02]} d5 {[%emt 0:09:34]} 14. e5 {[%emt 0:01:31]} Nd7 {[%emt 0:05:41]} 15. d4 {[%emt 0:00:13]} f6 {[%emt 0:02:10]} 16. exf6 {[%emt 0:00:38]} Bxf6 {[%emt 0:02:35]} 17. Nf1 {[%emt 0:01:19]} Rce8 {[%emt 0:01:26]} 18. Qd2 {[%emt 0:01:06]} Qd6 {[%emt 0:03:00]} 19. Rcd1 {[%emt 0:03:48]} Bg7 {[%emt 0:01:28]} 20. Ng3 {[%emt 0:01:36]} cxd4 {[%emt 0:06:56]} 21. Nxd4 {[%emt 0:04:50]} Nxd4 {[%emt 0:02:21]} 22. Bxd4 {[%emt 0:00:15]} e5 {[%emt 0:03:44]} 23. Be3 {[%emt 0:00:23]} Nc5 {[%emt 0:11:53]} 24. Bxd5+ {[%emt 0:01:39]} Qxd5 {[%emt 0:01:16]} 25. Qxd5+ {[%emt 0:00:08]} Bxd5 {[%emt 0:00:06]} 26. Rxd5 {[%emt 0:00:13]} Na4 {[%emt 0:00:28]} 27. Bc1 {[%emt 0:05:04]} Nc5 {[%emt 0:04:47]} 28. Ne4 {[%emt 0:01:34]} Ne6 {[%emt 0:00:59]} 29. Kg2 {[%emt 0:05:50]} Nf4+ {[%emt 0:02:47]} 30. Bxf4 {[%emt 0:00:06]} exf4 {[%emt 0:00:24]} 31. f3 {[%emt 0:00:02]} Re7 {[%emt 0:02:22]} 32. Red1 {[%emt 0:00:20]} Rfe8 {[%emt 0:01:47]} 33. Rd8 {[%emt 0:03:17]} Kf8 {[%emt 0:04:43]} 34. Kf2 {[%emt 0:00:21]} h6 {[%emt 0:01:10]} 35. R1d6 {[%emt 0:01:41]} g5 {[%emt 0:01:21]} 36. Ke2 {[%emt 0:02:47]} Kf7 {[%emt 0:02:34]} 37. Rxe8 {[%emt 0:00:22]} Kxe8 {[%emt 0:00:52]} 38. Kd3 {[%emt 0:00:16]} Bf8 {[%emt 0:01:36]} 39. Rd5 {[%emt 0:01:10]} Re6 {[%emt 0:02:16]} 40. b3 {[%emt 0:02:36]} Be7 {[%emt 0:03:20]} 41. b4 {[%emt 0:01:15]} a6 {[%emt 0:01:18]} 42. a3 {[%emt 0:00:13]} Kf7 {[%emt 0:00:39]} 43. c4 {[%emt 0:00:40]} Rc6 {[%emt 0:01:41]} 44. c5 {[%emt 0:02:55]} Ke6 {[%emt 0:00:46]} 45. Kd4 {[%emt 0:02:28]} b5 {[%emt 0:05:28]} 46. Re5+ {[%emt 0:00:47]} Kd7 {[%emt 0:00:27]} 47. Kd5 {[%emt 0:00:01]} Rg6 {[%emt 0:02:14]} 48. Rf5 {[%emt 0:00:48]} Kc7 {[%emt 0:00:00]} 49. Rf7 {[%emt 0:00:00]} Kd8 {[%emt 0:00:00]} 50. Rh7 {[%emt 0:00:00]} Bf8 {[%emt 0:00:00]} 51. Ra7 {[%emt 0:00:00]} Bg7 {[%emt 0:00:00]} 52. Nd6 {[%emt 0:00:00]} 1-0

[Event "African Individual Chess-ch Women 2024"]
[Site "Accra"]
[Date "2024.03.18"]
[Round "7.5"]
[White "Shaba, Linda Dalitso"]
[Black "Paulo, Jemima"]
[Result "0-1"]
[ECO "D46"]
[WhiteElo "1836"]
[BlackElo "1946"]
[Annotator "NA RC"]
[PlyCount "74"]
[EventDate "2024.03.13"]
[EventCountry "GHA"]
[SourceTitle "playchess.com"]
[Source "ChessBase"]
[SourceQuality "1"]
[TimeControl "5400+30"]

1. d4 {[%emt 0:00:04]} Nf6 {[%emt 0:00:32]} 2. c4 {[%emt 0:00:12]} c6 {[%emt 0:00:10]} 3. Nc3 {[%emt 0:00:18]} d5 {[%emt 0:00:09]} 4. e3 {[%emt 0:00:07]} e6 {[%emt 0:01:07]} 5. Nf3 {[%emt 0:00:19]} Bd6 {[%emt 0:00:10]} 6. Bd3 {[%emt 0:00:30]} Nbd7 {[%emt 0:00:11]} 7. O-O {[%emt 0:00:21]} O-O {[%emt 0:00:08]} 8. b3 {[%emt 0:01:59]} e5 {[%emt 0:01:46]} 9. dxe5 {[%emt 0:00:52]} Nxe5 {[%emt 0:00:09]} 10. Be2 {[%emt 0:05:40]} dxc4 {[%emt 0:08:07]} 11. bxc4 {[%emt 0:00:32]} Be6 {[%emt 0:00:07]} 12. Nxe5 {[%emt 0:01:53]} Bxe5 {[%emt 0:00:08]} 13. Qc2 {[%emt 0:01:50]} g6 {[%emt 0:06:33]} 14. Bb2 {[%emt 0:04:52]} Nd7 {[%emt 0:01:29]} 15. f4 {[%emt 0:10:23]} Bg7 {[%emt 0:00:54]} 16. e4 {[%emt 0:08:24]} Nb6 {[%emt 0:00:46]} 17. Rad1 {[%emt 0:04:54]} Qe7 {[%emt 0:00:11]} 18. Na4 {[%emt 0:05:29]} Bxb2 {[%emt 0:01:50]} 19. Nxb2 {[%emt 0:00:51]} Qc5+ {[%emt 0:00:44]} 20. Kh1 {[%emt 0:00:14]} f5 {[%emt 0:01:26]} 21. e5 {[%emt 0:02:05]} Rfd8 {[%emt 0:00:14]} 22. h3 {[%emt 0:10:42]} Rd4 {[%emt 0:00:26]} 23. Rxd4 {[%emt 0:00:47]} Qxd4 {[%emt 0:00:16]} 24. g3 {[%emt 0:01:52]} Nd7 {[%emt 0:00:43]} 25. Bf3 {[%emt 0:05:55]} Nc5 {[%emt 0:02:57]} 26. Kg2 {[%emt 0:03:27]} Ne4 {[%emt 0:03:30]} 27. Rd1 {[%emt 0:06:13]} Qe3 {[%emt 0:03:04]} 28. Bxe4 {[%emt 0:08:36]} fxe4 {[%emt 0:00:18]} 29. Rd6 {[%emt 0:03:47]} Qf3+ {[%emt 0:01:04]} 30. Kh2 {[%emt 0:00:21]} Re8 {[%emt 0:07:25]} 31. Qg2 {[%emt 0:03:24]} Qc3 {[%emt 0:00:15]} 32. Qd2 {[%emt 0:00:38]} Qxd2+ {[%emt 0:02:30]} 33. Rxd2 {[%emt 0:01:39]} Kf7 {[%emt 0:51:22]} 34. Rd8 {[%emt 0:04:03]} c5 {[%emt 0:00:00]} 35. h4 {[%emt 0:01:13]} h5 {[%emt 0:00:00]} 36. Rd2 {[%emt 0:01:02]} b6 {[%emt 0:00:00]} 37. a4 {[%emt 0:00:00]} Bd5 {[%emt 0:08:19]} 0-1

[Event "African Individual Chess-ch Women 2024"]
[Site "Accra"]
[Date "2024.03.18"]
[Round "7.6"]
[White "Mongeli, Sasha"]
[Black "Marochkina, Nadezhda Valerevna"]
[Result "1/2-1/2"]
[ECO "D02"]
[WhiteElo "1858"]
[BlackElo "1819"]
[Annotator "NA RC"]
[PlyCount "163"]
[EventDate "2024.03.13"]
[EventCountry "GHA"]
[SourceTitle "playchess.com"]
[Source "ChessBase"]
[SourceQuality "1"]
[TimeControl "5400+30"]

1. d4 {[%emt 0:00:09]} d5 {[%emt 0:00:05]} 2. Nf3 {[%emt 0:00:11]} Nf6 {[%emt 0:00:16]} 3. g3 {[%emt 0:00:23]} e6 {[%emt 0:01:36]} 4. Bg2 {[%emt 0:00:20]} c5 {[%emt 0:00:14]} 5. O-O {[%emt 0:01:32]} Nc6 {[%emt 0:00:24]} 6. c3 {[%emt 0:03:50]} Qb6 {[%emt 0:02:26]} 7. e3 {[%emt 0:05:48]} Bd6 {[%emt 0:02:21]} 8. Nbd2 {[%emt 0:04:24]} O-O {[%emt 0:00:21] D02: Damenbauernspiele.} 9. Re1 {[%emt 0:02:17]} a5 {[%emt 0:03:14]} 10. dxc5 {[%emt 0:09:56]} Bxc5 {[%emt 0:01:54]} 11. Qa4 {[%emt 0:03:08]} Bd7 {[%emt 0:01:31]} 12. Qb3 {[%emt 0:03:08]} Qa7 {[%emt 0:02:11]} 13. a4 {[%emt 0:00:53]} Qb8 {[%emt 0:07:32]} 14. Qc2 {[%emt 0:02:57]} Rc8 {[%emt 0:01:22]} 15. Nb3 {[%emt 0:03:00]} Bd6 {[%emt 0:00:33]} 16. Qe2 {[%emt 0:02:03]} b6 {[%emt 0:10:42]} 17. Nbd4 {[%emt 0:07:22]} Na7 {[%emt 0:01:03]} 18. Nd2 {[%emt 0:01:47]} e5 {[%emt 0:06:03]} 19. Nc2 {[%emt 0:02:40]} b5 {[%emt 0:02:32]} 20. axb5 {[%emt 0:05:13]} Bxb5 {[%emt 0:00:32]} 21. Qd1 {[%emt 0:00:35]} Nc6 {[%emt 0:00:30]} 22. e4 {[%emt 0:01:44]} d4 {[%emt 0:18:02]} 23. cxd4 {[%emt 0:02:12]} exd4 {[%emt 0:01:05]} 24. Nf3 {[%emt 0:03:21]} d3 {[%emt 0:08:02]} 25. Ncd4 {[%emt 0:01:00]} Bb4 {[%emt 0:01:55]} 26. Bd2 {[%emt 0:01:25]} Ra6 {[%emt 0:03:30]} 27. Nxc6 {[%emt 0:12:51]} Raxc6 {[%emt 0:06:20]} 28. Bxb4 {[%emt 0:03:09]} axb4 {[%emt 0:00:18]} 29. Nd4 {[%emt 0:00:58]} Rc5 {[%emt 0:04:28]} 30. Nxb5 {[%emt 0:03:24]} Qxb5 {[%emt 0:00:22]} 31. Bf1 {[%emt 0:00:32]} Rd8 {[%emt 0:01:12]} 32. Bxd3 {[%emt 0:02:04]} Qe8 {[%emt 0:02:22]} 33. Qb3 {[%emt 0:03:05]} Rd4 {[%emt 0:01:35]} 34. f3 {[%emt 0:05:58]} Nd7 {[%emt 0:01:13]} 35. Red1 {[%emt 0:00:35]} Ne5 {[%emt 0:02:25]} 36. Be2 {[%emt 0:00:26]} Qd8 {[%emt 0:00:13]} 37. Kf1 {[%emt 0:01:20]} Rc8 {[%emt 0:01:53]} 38. Rxd4 {[%emt 0:01:13]} Qxd4 {[%emt 0:00:02]} 39. Rd1 {[%emt 0:00:16]} Qc5 {[%emt 0:00:36]} 40. Qd5 {[%emt 0:03:21]} Qc7 {[%emt 0:00:47]} 41. Qd6 {[%emt 0:00:00]} Qa5 {[%emt 0:02:18]} 42. Qd5 {[%emt 0:00:00]} Qc7 {[%emt 0:00:00]} 43. f4 {[%emt 0:00:00]} Ng6 {[%emt 0:00:00]} 44. f5 {[%emt 0:00:00]} Ne5 {[%emt 0:00:00]} 45. Qd6 {[%emt 0:00:00]} Qxd6 {[%emt 0:00:00]} 46. Rxd6 {[%emt 0:00:00]} f6 {[%emt 0:00:00]} 47. Rb6 {[%emt 0:00:00]} Rc1+ {[%emt 0:00:00]} 48. Kf2 {[%emt 0:00:00]} Rc2 {[%emt 0:00:00]} 49. Rb8+ {[%emt 0:00:00]} Kf7 {[%emt 0:00:00]} 50. Rb7+ {[%emt 0:00:00]} Kf8 {[%emt 0:00:00]} 51. Rb8+ {[%emt 0:00:00]} Kf7 {[%emt 0:00:00]} 52. b3 {[%emt 0:00:00]} Rb2 {[%emt 0:00:00]} 53. Rb5 {[%emt 0:00:26]} Nc6 {[%emt 0:00:00]} 54. Ke1 {[%emt 0:01:14]} Rb1+ {[%emt 0:00:00]} 55. Kd2 {[%emt 0:00:41]} Rb2+ {[%emt 0:00:00]} 56. Ke1 {[%emt 0:01:26]} Rxe2+ {[%emt 0:00:00]} 57. Kxe2 {[%emt 0:02:13]} Nd4+ {[%emt 0:00:00]} 58. Kd3 {[%emt 0:00:19]} Nxb5 {[%emt 0:00:00]} 59. Kc4 {[%emt 0:00:04]} Nd6+ {[%emt 0:00:00]} 60. Kxb4 {[%emt 0:00:04]} Nxe4 {[%emt 0:00:00]} 61. Ka5 {[%emt 0:00:09]} Ke7 {[%emt 0:00:00]} 62. b4 {[%emt 0:00:09]} Kd7 {[%emt 0:00:00]} 63. Kb6 {[%emt 0:00:11]} Nd6 {[%emt 0:00:00]} 64. g4 {[%emt 0:00:08]} g6 {[%emt 0:00:00]} 65. fxg6 {[%emt 0:00:28]} hxg6 {[%emt 0:00:00]} 66. b5 {[%emt 0:00:45]} f5 {[%emt 0:00:00]} 67. gxf5 {[%emt 0:00:09]} gxf5 {[%emt 0:00:00]} 68. Kc5 {[%emt 0:00:15]} Ke6 {[%emt 0:00:00]} 69. h4 {[%emt 0:00:40]} Nxb5 {[%emt 0:00:00]} 70. Kxb5 {[%emt 0:02:07]} f4 {[%emt 0:00:00]} (70... Ke5 $5 71. Kc4 $8 Kf4 $11) 71. Kc4 {[%emt 0:00:23]} Kf5 {[%emt 0:00:02]} 72. Kd3 {[%emt 0:00:23]} Kg4 {[%emt 0:00:16]} 73. Ke2 {[%emt 0:00:12]} Kxh4 {[%emt 0:00:09]} 74. Kf3 {[%emt 0:00:03]} Kg5 {[%emt 0:00:05]} 75. Kf2 {[%emt 0:00:04]} Kg4 {[%emt 0:00:05]} 76. Kg2 {[%emt 0:00:05]} Kg5 {[%emt 0:00:23]} 77. Kf3 {[%emt 0:00:04]} Kf5 {[%emt 0:00:08]} 78. Kf2 {[%emt 0:00:06]} Ke4 {[%emt 0:00:11]} 79. Ke2 {[%emt 0:00:08]} f3+ {[%emt 0:00:08]} 80. Kf2 {[%emt 0:00:05]} Kf4 {[%emt 0:00:03]} 81. Kf1 {[%emt 0:00:13]} Ke3 {[%emt 0:00:09]} 82. Ke1 $11 {[%emt 0:00:08]} 1/2-1/2